[Event "Titled Tuesday Blitz August 1 Early 2023"]
[White "Kaczur, Florian"]
[Black "Postlmayer, Jakob"]
[WhiteFideId "705098"]
[BlackFideId "1643622"]
[WhiteElo "2764"]
[BlackElo "2557"]
[Result "1-0"]
[Round "6"]
[TimeControl "180+1"]
[Date "2023.08.01"]
[WhiteClock "0:00:15"]
[BlackClock "0:00:00"]
[Board "63"]

1. e4 {[%clk 0:03:00]}  c6 {[%clk 0:02:58]} 2. Nc3 {[%clk 0:02:58]}  d5 {[%clk 0:02:59]} 3. Qe2 {[%clk 0:02:55]}  d4 {[%clk 0:02:57]} 4. Nd1 {[%clk 0:02:54]}  e5 {[%clk 0:02:55]} 5. d3 {[%clk 0:02:52]}  c5 {[%clk 0:02:54]} 6. f4 {[%clk 0:02:53]}  Nc6 {[%clk 0:02:48]} 7. Nf3 {[%clk 0:02:50]}  Bd6 {[%clk 0:02:48]} 8. g3 {[%clk 0:02:47]}  Nge7 {[%clk 0:02:46]} 9. Nf2 {[%clk 0:02:45]}  Qc7 {[%clk 0:02:44]} 10. fxe5 {[%clk 0:02:41]}  Nxe5 {[%clk 0:02:44]} 11. Nxe5 {[%clk 0:02:42]}  Bxe5 {[%clk 0:02:44]} 12. Ng4 {[%clk 0:02:41]}  Ng6 {[%clk 0:02:41]} 13. Nxe5 {[%clk 0:02:35]}  Qxe5 {[%clk 0:02:41]} 14. Qf2 {[%clk 0:02:27]}  O-O {[%clk 0:02:36]} 15. Bf4 {[%clk 0:02:23]}  Qe7 {[%clk 0:02:34]} 16. O-O-O {[%clk 0:02:14]}  Be6 {[%clk 0:02:33]} 17. Kb1 {[%clk 0:02:08]}  b5 {[%clk 0:02:22]} 18. h4 {[%clk 0:02:07]}  Bg4 {[%clk 0:02:16]} 19. Re1 {[%clk 0:02:00]}  Ne5 {[%clk 0:02:13]} 20. Bxe5 {[%clk 0:01:56]}  Qxe5 {[%clk 0:02:13]} 21. Qf4 {[%clk 0:01:52]}  Qe6 {[%clk 0:02:02]} 22. h5 {[%clk 0:01:48]}  h6 {[%clk 0:01:50]} 23. Rh4 {[%clk 0:01:39]}  f5 {[%clk 0:01:50]} 24. e5 {[%clk 0:01:36]}  a5 {[%clk 0:01:41]} 25. Bg2 {[%clk 0:01:34]}  Rad8 {[%clk 0:01:40]} 26. Rhh1 {[%clk 0:01:30]}  b4 {[%clk 0:01:40]} 27. b3 {[%clk 0:01:27]}  a4 {[%clk 0:01:40]} 28. Kc1 {[%clk 0:01:27]}  Rf7 {[%clk 0:01:35]} 29. Kd2 {[%clk 0:01:26]}  Ra7 {[%clk 0:01:34]} 30. Bf3 {[%clk 0:01:21]}  Bxf3 {[%clk 0:01:33]} 31. Qxf3 {[%clk 0:01:22]}  axb3 {[%clk 0:01:32]} 32. axb3 {[%clk 0:01:21]}  Ra2 {[%clk 0:01:33]} 33. Rb1 {[%clk 0:01:11]}  Qxe5 {[%clk 0:01:33]} 34. Rhe1 {[%clk 0:01:10]}  Qf6 {[%clk 0:01:33]} 35. Qf4 {[%clk 0:01:07]}  Qf7 {[%clk 0:01:31]} 36. Re5 {[%clk 0:01:05]}  Rd5 {[%clk 0:01:25]} 37. Rxd5 {[%clk 0:01:00]}  Qxd5 {[%clk 0:01:25]} 38. Qf2 {[%clk 0:00:46]}  Ra8 {[%clk 0:01:15]} 39. Re1 {[%clk 0:00:43]}  Rf8 {[%clk 0:01:15]} 40. Re7 {[%clk 0:00:42]}  Rf7 {[%clk 0:01:14]} 41. Re8+ {[%clk 0:00:41]}  Kh7 {[%clk 0:01:14]} 42. Qf4 {[%clk 0:00:38]}  Qg2+ {[%clk 0:01:13]} 43. Kc1 {[%clk 0:00:38]}  Qh1+ {[%clk 0:00:53]} 44. Kb2 {[%clk 0:00:37]}  Qxh5 {[%clk 0:00:53]} 45. Qb8 {[%clk 0:00:36]}  Rf6 {[%clk 0:00:50]} 46. Rh8+ {[%clk 0:00:23]}  Kg6 {[%clk 0:00:50]} 47. Qe8+ {[%clk 0:00:24]}  Kg5 {[%clk 0:00:50]} 48. Qe5 {[%clk 0:00:25]}  Qf7 {[%clk 0:00:11]} 49. Qxc5 {[%clk 0:00:19]}  Kg4 {[%clk 0:00:09]} 50. Qxd4+ {[%clk 0:00:18]}  Kxg3 {[%clk 0:00:09]} 51. Qg1+ {[%clk 0:00:19]}  Kf3 {[%clk 0:00:06]} 52. Qf1+ {[%clk 0:00:18]}  Kg3 {[%clk 0:00:06]} 53. Qg1+ {[%clk 0:00:17]}  Kf3 {[%clk 0:00:06]} 54. Rc8 {[%clk 0:00:18]}  Qe7 {[%clk 0:00:03]} 55. Qf1+ {[%clk 0:00:16]}  Kg3 {[%clk 0:00:03]} 56. Qg1+ {[%clk 0:00:17]}  Kf3 {[%clk 0:00:03]} 57. Rc4 {[%clk 0:00:16]}  Qe5+ {[%clk 0:00:02]} 58. d4 {[%clk 0:00:17]}  Qe3 {[%clk 0:00:01]} 59. Qh1+ {[%clk 0:00:17]}  Kg3 {[%clk 0:00:01]} 60. Rxb4 {[%clk 0:00:18]}  f4 {[%clk 0:00:01]} 61. d5 {[%clk 0:00:18]}  f3 {[%clk 0:00:01]} 62. Qh4+ {[%clk 0:00:17]}  Kg2 {[%clk 0:00:02]} 63. Rg4+ {[%clk 0:00:17]}  Kf1 {[%clk 0:00:01]} 64. Qh1+ {[%clk 0:00:18]}  Ke2 {[%clk 0:00:00]} 65. Qh5 {[%clk 0:00:15]} 1-0


[Site "https://www.chess.com"]

[Event "Titled Tuesday Blitz August 1 Early 2023"]
[White "Onufrienko, Vladislav"]
[Black "Vakhlamov, Igor L."]
[WhiteFideId "13804332"]
[BlackFideId "24126748"]
[WhiteElo "2556"]
[BlackElo "2724"]
[Result "1/2-1/2"]
[Round "6"]
[TimeControl "180+1"]
[Date "2023.08.01"]
[WhiteClock "0:00:17"]
[BlackClock "0:01:00"]
[Board "64"]

1. e4 {[%clk 0:03:00]}  c5 {[%clk 0:02:58]} 2. Nc3 {[%clk 0:03:01]}  e6 {[%clk 0:02:59]} 3. Nf3 {[%clk 0:03:01]}  Nc6 {[%clk 0:02:59]} 4. d4 {[%clk 0:03:02]}  cxd4 {[%clk 0:02:59]} 5. Nxd4 {[%clk 0:03:03]}  Nf6 {[%clk 0:02:59]} 6. Nxc6 {[%clk 0:03:03]}  bxc6 {[%clk 0:02:59]} 7. e5 {[%clk 0:03:04]}  Nd5 {[%clk 0:02:59]} 8. Ne4 {[%clk 0:03:05]}  f5 {[%clk 0:02:59]} 9. Nd6+ {[%clk 0:02:55]}  Bxd6 {[%clk 0:02:58]} 10. exd6 {[%clk 0:02:56]}  c5 {[%clk 0:02:48]} 11. c4 {[%clk 0:02:55]}  Nf6 {[%clk 0:02:47]} 12. Be2 {[%clk 0:02:54]}  O-O {[%clk 0:02:39]} 13. O-O {[%clk 0:02:54]}  Bb7 {[%clk 0:02:40]} 14. Bf4 {[%clk 0:02:52]}  Qb6 {[%clk 0:02:37]} 15. b3 {[%clk 0:02:52]}  a5 {[%clk 0:02:37]} 16. Rb1 {[%clk 0:02:37]}  Be4 {[%clk 0:02:33]} 17. Rb2 {[%clk 0:02:36]}  a4 {[%clk 0:02:34]} 18. Be5 {[%clk 0:02:36]}  axb3 {[%clk 0:02:32]} 19. axb3 {[%clk 0:02:37]}  Ra3 {[%clk 0:02:12]} 20. f3 {[%clk 0:02:35]}  Bc6 {[%clk 0:02:12]} 21. Qc2 {[%clk 0:02:31]}  Rb8 {[%clk 0:01:52]} 22. Rfb1 {[%clk 0:02:26]}  Rba8 {[%clk 0:01:49]} 23. Kh1 {[%clk 0:02:22]}  Ra1 {[%clk 0:01:48]} 24. Bd3 {[%clk 0:02:17]}  Rxb1+ {[%clk 0:01:43]} 25. Rxb1 {[%clk 0:02:18]}  Ra3 {[%clk 0:01:39]} 26. Qb2 {[%clk 0:02:14]}  Qa5 {[%clk 0:01:35]} 27. Bxf6 {[%clk 0:01:53]}  gxf6 {[%clk 0:01:36]} 28. Qxf6 {[%clk 0:01:53]}  Rxb3 {[%clk 0:01:35]} 29. Qg5+ {[%clk 0:01:41]}  Kf7 {[%clk 0:01:31]} 30. Qh5+ {[%clk 0:00:52]}  Kf8 {[%clk 0:01:27]} 31. Qh6+ {[%clk 0:00:50]}  Kg8 {[%clk 0:01:25]} 32. Qg5+ {[%clk 0:00:40]}  Kf7 {[%clk 0:01:21]} 33. Qe7+ {[%clk 0:00:31]}  Kg6 {[%clk 0:01:17]} 34. Qe8+ {[%clk 0:00:26]}  Kg7 {[%clk 0:00:59]} 35. Qe7+ {[%clk 0:00:18]}  Kg8 {[%clk 0:01:00]} 36. Qg5+ {[%clk 0:00:17]} 1/2-1/2


[Site "https://www.chess.com"]

[Event "Titled Tuesday Blitz August 1 Early 2023"]
[White "Gauri, Shankar"]
[Black "Preotu, Razvan"]
[WhiteFideId "5041350"]
[BlackFideId "2613280"]
[WhiteElo "2551"]
[BlackElo "2723"]
[Result "1/2-1/2"]
[Round "6"]
[TimeControl "180+1"]
[Date "2023.08.01"]
[WhiteClock "0:00:23"]
[BlackClock "0:00:15"]
[Board "65"]

1. e4 {[%clk 0:02:56]}  c5 {[%clk 0:02:58]} 2. Nf3 {[%clk 0:02:55]}  d6 {[%clk 0:02:59]} 3. Bb5+ {[%clk 0:02:48]}  Nd7 {[%clk 0:02:58]} 4. O-O {[%clk 0:02:47]}  a6 {[%clk 0:02:57]} 5. Bd3 {[%clk 0:02:46]}  Ngf6 {[%clk 0:02:57]} 6. Re1 {[%clk 0:02:45]}  e6 {[%clk 0:02:56]} 7. c3 {[%clk 0:02:42]}  b5 {[%clk 0:02:41]} 8. Bc2 {[%clk 0:02:39]}  Bb7 {[%clk 0:02:36]} 9. d4 {[%clk 0:02:36]}  Be7 {[%clk 0:02:37]} 10. Nbd2 {[%clk 0:02:30]}  Qc7 {[%clk 0:02:37]} 11. Bd3 {[%clk 0:02:28]}  O-O {[%clk 0:02:34]} 12. a4 {[%clk 0:02:20]}  cxd4 {[%clk 0:01:35]} 13. cxd4 {[%clk 0:02:18]}  b4 {[%clk 0:01:35]} 14. Nb3 {[%clk 0:01:57]}  a5 {[%clk 0:01:10]} 15. Bg5 {[%clk 0:01:49]}  Ba6 {[%clk 0:01:05]} 16. Rc1 {[%clk 0:01:37]}  Qb6 {[%clk 0:01:05]} 17. Bb1 {[%clk 0:01:28]}  h6 {[%clk 0:01:02]} 18. Bh4 {[%clk 0:01:21]}  Rfd8 {[%clk 0:00:51]} 19. h3 {[%clk 0:00:59]}  Nf8 {[%clk 0:00:49]} 20. Qd2 {[%clk 0:00:55]}  Ng6 {[%clk 0:00:48]} 21. Bg3 {[%clk 0:00:54]}  e5 {[%clk 0:00:47]} 22. Red1 {[%clk 0:00:41]}  Nh5 {[%clk 0:00:47]} 23. Bh2 {[%clk 0:00:36]}  Nhf4 {[%clk 0:00:47]} 24. Bxf4 {[%clk 0:00:23]}  Nxf4 {[%clk 0:00:48]} 25. Kh2 {[%clk 0:00:23]}  Bf6 {[%clk 0:00:47]} 26. d5 {[%clk 0:00:19]}  Rac8 {[%clk 0:00:46]} 27. g3 {[%clk 0:00:20]}  Ng6 {[%clk 0:00:46]} 28. Kg2 {[%clk 0:00:17]}  Nf8 {[%clk 0:00:43]} 29. Qe3 {[%clk 0:00:15]}  Qxe3 {[%clk 0:00:38]} 30. fxe3 {[%clk 0:00:16]}  Ra8 {[%clk 0:00:24]} 31. Kf2 {[%clk 0:00:13]}  Nd7 {[%clk 0:00:20]} 32. Nxa5 {[%clk 0:00:13]}  Be2 {[%clk 0:00:09]} 33. Kxe2 {[%clk 0:00:11]}  Rxa5 {[%clk 0:00:09]} 34. b3 {[%clk 0:00:12]}  Nc5 {[%clk 0:00:10]} 35. Bc2 {[%clk 0:00:12]}  g6 {[%clk 0:00:06]} 36. Ne1 {[%clk 0:00:13]}  Rc8 {[%clk 0:00:05]} 37. Nd3 {[%clk 0:00:13]}  Nxd3 {[%clk 0:00:05]} 38. Bxd3 {[%clk 0:00:12]}  Rac5 {[%clk 0:00:04]} 39. Rc4 {[%clk 0:00:12]}  Rxc4 {[%clk 0:00:04]} 40. Bxc4 {[%clk 0:00:12]}  Bd8 {[%clk 0:00:05]} 41. Rc1 {[%clk 0:00:12]}  Ba5 {[%clk 0:00:05]} 42. Kd2 {[%clk 0:00:12]}  Kf8 {[%clk 0:00:05]} 43. Rf1 {[%clk 0:00:10]}  Ke7 {[%clk 0:00:05]} 44. g4 {[%clk 0:00:11]}  Bb6 {[%clk 0:00:04]} 45. Kd3 {[%clk 0:00:11]}  Rc7 {[%clk 0:00:05]} 46. Rc1 {[%clk 0:00:11]}  Rc8 {[%clk 0:00:05]} 47. Rc2 {[%clk 0:00:12]}  Rc7 {[%clk 0:00:05]} 48. Ra2 {[%clk 0:00:12]}  Ra7 {[%clk 0:00:05]} 49. Rc2 {[%clk 0:00:12]}  Rc7 {[%clk 0:00:06]} 50. Ke2 {[%clk 0:00:13]}  Rc8 {[%clk 0:00:06]} 51. Bd3 {[%clk 0:00:13]}  Rxc2+ {[%clk 0:00:06]} 52. Bxc2 {[%clk 0:00:14]}  Kd8 {[%clk 0:00:05]} 53. Kd3 {[%clk 0:00:14]}  Kc7 {[%clk 0:00:04]} 54. Kc4 {[%clk 0:00:15]}  Bc5 {[%clk 0:00:04]} 55. Kb5 {[%clk 0:00:16]}  Kb7 {[%clk 0:00:05]} 56. Bd3 {[%clk 0:00:16]}  g5 {[%clk 0:00:04]} 57. Be2 {[%clk 0:00:17]}  Kc7 {[%clk 0:00:04]} 58. Ka6 {[%clk 0:00:17]}  f6 {[%clk 0:00:05]} 59. Kb5 {[%clk 0:00:17]}  Kb7 {[%clk 0:00:05]} 60. Bd3 {[%clk 0:00:17]}  Kc7 {[%clk 0:00:05]} 61. a5 {[%clk 0:00:18]}  Kb7 {[%clk 0:00:05]} 62. a6+ {[%clk 0:00:18]}  Kc7 {[%clk 0:00:06]} 63. Ka4 {[%clk 0:00:18]}  Kb6 {[%clk 0:00:05]} 64. Be2 {[%clk 0:00:18]}  Kc7 {[%clk 0:00:05]} 65. Kb5 {[%clk 0:00:19]}  Bxe3 {[%clk 0:00:03]} 66. Kxb4 {[%clk 0:00:19]}  Kb6 {[%clk 0:00:04]} 67. Kc4 {[%clk 0:00:19]}  Kxa6 {[%clk 0:00:04]} 68. Kb4+ {[%clk 0:00:18]}  Kb6 {[%clk 0:00:05]} 69. Kc4 {[%clk 0:00:18]}  Bf4 {[%clk 0:00:05]} 70. b4 {[%clk 0:00:18]}  Bg3 {[%clk 0:00:06]} 71. Kb3 {[%clk 0:00:18]}  Bh4 {[%clk 0:00:07]} 72. Ka4 {[%clk 0:00:19]}  Bg3 {[%clk 0:00:08]} 73. Bb5 {[%clk 0:00:18]}  Bh4 {[%clk 0:00:09]} 74. Bd7 {[%clk 0:00:19]}  Bg3 {[%clk 0:00:09]} 75. Bf5 {[%clk 0:00:19]}  Bh4 {[%clk 0:00:10]} 76. Kb3 {[%clk 0:00:20]}  Bg3 {[%clk 0:00:11]} 77. Kc4 {[%clk 0:00:20]}  Bh4 {[%clk 0:00:12]} 78. Bg6 {[%clk 0:00:21]}  Bg3 {[%clk 0:00:13]} 79. Bf5 {[%clk 0:00:21]}  Bh4 {[%clk 0:00:14]} 80. Bg6 {[%clk 0:00:22]}  Bg3 {[%clk 0:00:15]} 81. Bf5 {[%clk 0:00:23]} 1/2-1/2


[Site "https://www.chess.com"]

[Event "Titled Tuesday Blitz August 1 Early 2023"]
[White "Fonseca Manrique, Enrique"]
[Black "Dimitrov, Atanas"]
[WhiteFideId "5114330"]
[BlackFideId "2901315"]
[WhiteElo "2549"]
[BlackElo "2710"]
[Result "0-1"]
[Round "6"]
[TimeControl "180+1"]
[Date "2023.08.01"]
[WhiteClock "0:00:00"]
[BlackClock "0:00:03"]
[Board "66"]

1. e4 {[%clk 0:03:00]}  c5 {[%clk 0:02:59]} 2. Nf3 {[%clk 0:03:00]}  d6 {[%clk 0:03:00]} 3. d4 {[%clk 0:03:01]}  cxd4 {[%clk 0:03:01]} 4. Nxd4 {[%clk 0:03:02]}  Nf6 {[%clk 0:03:00]} 5. Nc3 {[%clk 0:03:02]}  Nc6 {[%clk 0:03:01]} 6. Bc4 {[%clk 0:03:01]}  e6 {[%clk 0:02:55]} 7. Be3 {[%clk 0:03:00]}  Be7 {[%clk 0:02:56]} 8. Qe2 {[%clk 0:02:59]}  Bd7 {[%clk 0:02:55]} 9. Nxc6 {[%clk 0:02:48]}  Bxc6 {[%clk 0:02:54]} 10. f3 {[%clk 0:02:48]}  Qc7 {[%clk 0:02:54]} 11. Bb3 {[%clk 0:02:45]}  O-O {[%clk 0:02:51]} 12. O-O-O {[%clk 0:02:44]}  Rfd8 {[%clk 0:02:48]} 13. g4 {[%clk 0:02:44]}  a6 {[%clk 0:02:37]} 14. h4 {[%clk 0:02:30]}  Rac8 {[%clk 0:02:24]} 15. h5 {[%clk 0:02:19]}  Nd7 {[%clk 0:02:12]} 16. g5 {[%clk 0:02:14]}  Nc5 {[%clk 0:02:08]} 17. g6 {[%clk 0:01:48]}  Nxb3+ {[%clk 0:02:07]} 18. axb3 {[%clk 0:01:49]}  Bf6 {[%clk 0:01:59]} 19. gxh7+ {[%clk 0:01:34]}  Kh8 {[%clk 0:01:51]} 20. Bd4 {[%clk 0:01:32]}  Qe7 {[%clk 0:01:42]} 21. Qf2 {[%clk 0:00:59]}  Rd7 {[%clk 0:01:25]} 22. h6 {[%clk 0:00:40]}  g6 {[%clk 0:01:22]} 23. Rhe1 {[%clk 0:00:36]}  Kxh7 {[%clk 0:01:14]} 24. f4 {[%clk 0:00:31]}  Bxd4 {[%clk 0:01:08]} 25. Rxd4 {[%clk 0:00:25]}  Rcd8 {[%clk 0:01:05]} 26. f5 {[%clk 0:00:25]}  Qg5+ {[%clk 0:00:56]} 27. Kb1 {[%clk 0:00:24]}  Rg8 {[%clk 0:00:18]} 28. Rd3 {[%clk 0:00:20]}  Qf6 {[%clk 0:00:13]} 29. Qe2 {[%clk 0:00:08]}  gxf5 {[%clk 0:00:09]} 30. exf5 {[%clk 0:00:09]}  exf5 {[%clk 0:00:10]} 31. Nd5 {[%clk 0:00:07]}  Bxd5 {[%clk 0:00:10]} 32. Rxd5 {[%clk 0:00:08]}  Rg6 {[%clk 0:00:09]} 33. Qd3 {[%clk 0:00:08]}  Rg5 {[%clk 0:00:07]} 34. Rf1 {[%clk 0:00:08]}  Kg6 {[%clk 0:00:07]} 35. h7 {[%clk 0:00:07]}  Kxh7 {[%clk 0:00:07]} 36. Rdxf5 {[%clk 0:00:08]}  Rxf5 {[%clk 0:00:07]} 37. Rxf5 {[%clk 0:00:09]}  Qg6 {[%clk 0:00:08]} 38. Qf3 {[%clk 0:00:07]}  Kg7 {[%clk 0:00:04]} 39. Qf4 {[%clk 0:00:06]}  f6 {[%clk 0:00:04]} 40. Rd5 {[%clk 0:00:06]}  Qg1+ {[%clk 0:00:02]} 41. Ka2 {[%clk 0:00:06]}  Qg6 {[%clk 0:00:02]} 42. Rd3 {[%clk 0:00:06]}  Kf7 {[%clk 0:00:02]} 43. Qc4+ {[%clk 0:00:05]}  d5 {[%clk 0:00:01]} 44. Rxd5 {[%clk 0:00:05]}  Rxd5 {[%clk 0:00:02]} 45. Qxd5+ {[%clk 0:00:06]}  Kg7 {[%clk 0:00:03]} 46. Qxb7+ {[%clk 0:00:06]}  Qf7 {[%clk 0:00:04]} 47. Qg2+ {[%clk 0:00:06]}  Qg6 {[%clk 0:00:04]} 48. Qb7+ {[%clk 0:00:05]}  Qf7 {[%clk 0:00:04]} 49. Qxa6 {[%clk 0:00:06]}  f5 {[%clk 0:00:04]} 50. Qf1 {[%clk 0:00:06]}  f4 {[%clk 0:00:05]} 51. Qf3 {[%clk 0:00:06]}  Kg6 {[%clk 0:00:05]} 52. c4 {[%clk 0:00:07]}  Kf5 {[%clk 0:00:05]} 53. Qd3+ {[%clk 0:00:05]}  Kg4 {[%clk 0:00:05]} 54. Qe2+ {[%clk 0:00:05]}  f3 {[%clk 0:00:06]} 55. Qf2 {[%clk 0:00:05]}  Qf4 {[%clk 0:00:04]} 56. c5 {[%clk 0:00:06]}  Qg3 {[%clk 0:00:05]} 57. Qd4+ {[%clk 0:00:05]}  Kh3 {[%clk 0:00:05]} 58. c6 {[%clk 0:00:05]}  f2 {[%clk 0:00:04]} 59. Qh8+ {[%clk 0:00:06]}  Kg2 {[%clk 0:00:04]} 60. Qa8 {[%clk 0:00:01]}  Qf3 {[%clk 0:00:03]} 61. c7 {[%clk 0:00:00]}  Qxa8+ {[%clk 0:00:03]} 0-1


[Site "https://www.chess.com"]

[Event "Titled Tuesday Blitz August 1 Early 2023"]
[White "Ganiev, Roman"]
[Black "Ning, Kaiyu"]
[WhiteFideId "4131452"]
[BlackFideId "8614750"]
[WhiteElo "2549"]
[BlackElo "2710"]
[Result "0-1"]
[Round "6"]
[TimeControl "180+1"]
[Date "2023.08.01"]
[WhiteClock "0:00:01"]
[BlackClock "0:02:02"]
[Board "67"]

1. e4 {[%clk 0:03:00]}  c5 {[%clk 0:02:59]} 2. Nf3 {[%clk 0:03:00]}  Nc6 {[%clk 0:03:00]} 3. Bb5 {[%clk 0:03:00]}  e6 {[%clk 0:03:00]} 4. Bxc6 {[%clk 0:02:58]}  bxc6 {[%clk 0:03:01]} 5. d3 {[%clk 0:02:58]}  Qc7 {[%clk 0:02:59]} 6. O-O {[%clk 0:02:57]}  Ne7 {[%clk 0:02:58]} 7. b3 {[%clk 0:02:55]}  Ng6 {[%clk 0:02:58]} 8. Bb2 {[%clk 0:02:55]}  e5 {[%clk 0:02:56]} 9. Nbd2 {[%clk 0:02:53]}  Be7 {[%clk 0:02:54]} 10. Nc4 {[%clk 0:02:50]}  d6 {[%clk 0:02:55]} 11. a4 {[%clk 0:02:48]}  O-O {[%clk 0:02:55]} 12. Ne3 {[%clk 0:01:55]}  Be6 {[%clk 0:02:50]} 13. Nf5 {[%clk 0:01:52]}  Qd7 {[%clk 0:02:35]} 14. Nxe7+ {[%clk 0:01:41]}  Qxe7 {[%clk 0:02:36]} 15. Nd2 {[%clk 0:01:16]}  f5 {[%clk 0:02:35]} 16. exf5 {[%clk 0:01:14]}  Rxf5 {[%clk 0:02:34]} 17. Ne4 {[%clk 0:00:51]}  Raf8 {[%clk 0:02:34]} 18. f3 {[%clk 0:00:47]}  Nf4 {[%clk 0:02:33]} 19. Qd2 {[%clk 0:00:42]}  Rh5 {[%clk 0:02:31]} 20. Ng3 {[%clk 0:00:40]}  Rxh2 {[%clk 0:02:20]} 21. Kxh2 {[%clk 0:00:33]}  Qh4+ {[%clk 0:02:21]} 22. Kg1 {[%clk 0:00:33]}  Qxg3 {[%clk 0:02:21]} 23. b4 {[%clk 0:00:23]}  Rf6 {[%clk 0:02:04]} 24. bxc5 {[%clk 0:00:06]}  Rh6 {[%clk 0:02:03]} 25. cxd6 {[%clk 0:00:01]}  Nh3+ {[%clk 0:02:02]} 0-1


[Site "https://www.chess.com"]

[Event "Titled Tuesday Blitz August 1 Early 2023"]
[White "Ordekalog"]
[Black "nickVet"]
[WhiteElo "2538"]
[BlackElo "2702"]
[Result "0-1"]
[Round "6"]
[TimeControl "180+1"]
[Date "2023.08.01"]
[WhiteClock "0:00:43"]
[BlackClock "0:01:47"]
[Board "70"]

1. d4 {[%clk 0:03:00]}  d5 {[%clk 0:03:00]} 2. c4 {[%clk 0:03:00]}  c6 {[%clk 0:03:00]} 3. cxd5 {[%clk 0:03:00]}  cxd5 {[%clk 0:03:01]} 4. Nc3 {[%clk 0:03:00]}  Nf6 {[%clk 0:03:02]} 5. Bf4 {[%clk 0:03:00]}  Nc6 {[%clk 0:03:02]} 6. e3 {[%clk 0:03:01]}  a6 {[%clk 0:03:02]} 7. Nf3 {[%clk 0:03:00]}  Bg4 {[%clk 0:03:02]} 8. h3 {[%clk 0:02:59]}  Bxf3 {[%clk 0:03:03]} 9. Qxf3 {[%clk 0:02:59]}  e6 {[%clk 0:03:04]} 10. Bd3 {[%clk 0:02:58]}  Bd6 {[%clk 0:03:02]} 11. O-O {[%clk 0:02:58]}  Bxf4 {[%clk 0:03:02]} 12. Qxf4 {[%clk 0:02:58]}  O-O {[%clk 0:03:02]} 13. Rad1 {[%clk 0:02:55]}  Rc8 {[%clk 0:02:56]} 14. Bb1 {[%clk 0:02:52]}  Qc7 {[%clk 0:02:54]} 15. Qh4 {[%clk 0:02:51]}  Ne7 {[%clk 0:02:52]} 16. f4 {[%clk 0:02:39]}  Nf5 {[%clk 0:02:43]} 17. Qf2 {[%clk 0:02:38]}  Nd6 {[%clk 0:02:39]} 18. Qf3 {[%clk 0:02:36]}  b5 {[%clk 0:02:38]} 19. g4 {[%clk 0:02:25]}  b4 {[%clk 0:02:36]} 20. g5 {[%clk 0:02:17]}  bxc3 {[%clk 0:02:31]} 21. gxf6 {[%clk 0:02:17]}  c2 {[%clk 0:02:31]} 22. Qg2 {[%clk 0:02:01]}  Nf5 {[%clk 0:01:58]} 23. fxg7 {[%clk 0:00:43]}  Rfd8 {[%clk 0:01:47]} 0-1


[Site "https://www.chess.com"]

[Event "Titled Tuesday Blitz August 1 Early 2023"]
[White "SmirnovAlexandrA"]
[Black "Alamzhi21"]
[WhiteElo "2530"]
[BlackElo "2697"]
[Result "1-0"]
[Round "6"]
[TimeControl "180+1"]
[Date "2023.08.01"]
[WhiteClock "0:00:31"]
[BlackClock "0:00:00"]
[Board "74"]

1. e4 {[%clk 0:02:51]}  c5 {[%clk 0:02:58]} 2. Nf3 {[%clk 0:02:51]}  e6 {[%clk 0:02:54]} 3. g3 {[%clk 0:02:51]}  Nc6 {[%clk 0:02:51]} 4. Bg2 {[%clk 0:02:51]}  d6 {[%clk 0:02:50]} 5. O-O {[%clk 0:02:51]}  Nf6 {[%clk 0:02:50]} 6. Qe2 {[%clk 0:02:50]}  Be7 {[%clk 0:02:49]} 7. d3 {[%clk 0:02:49]}  O-O {[%clk 0:02:49]} 8. c3 {[%clk 0:02:47]}  e5 {[%clk 0:02:49]} 9. h3 {[%clk 0:02:46]}  Re8 {[%clk 0:02:43]} 10. Na3 {[%clk 0:02:46]}  Bf8 {[%clk 0:02:42]} 11. Nc4 {[%clk 0:02:46]}  b5 {[%clk 0:02:40]} 12. Ne3 {[%clk 0:02:46]}  b4 {[%clk 0:02:41]} 13. Bd2 {[%clk 0:02:43]}  a5 {[%clk 0:02:41]} 14. Rad1 {[%clk 0:02:40]}  Ba6 {[%clk 0:02:38]} 15. Nh2 {[%clk 0:02:28]}  Rb8 {[%clk 0:02:34]} 16. Nf5 {[%clk 0:02:21]}  bxc3 {[%clk 0:02:27]} 17. bxc3 {[%clk 0:02:20]}  Rb2 {[%clk 0:02:26]} 18. a4 {[%clk 0:02:18]}  g6 {[%clk 0:02:22]} 19. Ne3 {[%clk 0:02:08]}  Bh6 {[%clk 0:02:16]} 20. Nhg4 {[%clk 0:02:00]}  Nxg4 {[%clk 0:02:15]} 21. Nxg4 {[%clk 0:02:01]}  Bg7 {[%clk 0:02:11]} 22. f4 {[%clk 0:01:55]}  exf4 {[%clk 0:02:10]} 23. gxf4 {[%clk 0:01:56]}  Bxc3 {[%clk 0:02:09]} 24. f5 {[%clk 0:01:52]}  Nd4 {[%clk 0:01:48]} 25. Qe3 {[%clk 0:01:48]}  Nxf5 {[%clk 0:01:35]} 26. Qf4 {[%clk 0:01:36]}  Bxd2 {[%clk 0:01:03]} 27. Rxd2 {[%clk 0:01:33]}  Rxd2 {[%clk 0:01:04]} 28. Qxd2 {[%clk 0:01:28]}  Nd4 {[%clk 0:00:56]} 29. Nh6+ {[%clk 0:01:28]}  Kg7 {[%clk 0:00:49]} 30. Rxf7+ {[%clk 0:01:28]}  Kh8 {[%clk 0:00:49]} 31. Ra7 {[%clk 0:01:25]}  Qf6 {[%clk 0:00:38]} 32. Rxa6 {[%clk 0:01:17]}  Rb8 {[%clk 0:00:34]} 33. Ng4 {[%clk 0:01:03]}  Qh4 {[%clk 0:00:22]} 34. Qf2 {[%clk 0:00:56]}  Rb1+ {[%clk 0:00:18]} 35. Kh2 {[%clk 0:00:56]}  Qxf2 {[%clk 0:00:16]} 36. Nxf2 {[%clk 0:00:56]}  Rb2 {[%clk 0:00:17]} 37. Ng4 {[%clk 0:00:52]}  Nf3+ {[%clk 0:00:17]} 38. Kg3 {[%clk 0:00:52]}  Ne1 {[%clk 0:00:18]} 39. Bf3 {[%clk 0:00:49]}  Nxd3 {[%clk 0:00:17]} 40. Ra7 {[%clk 0:00:45]}  Kg8 {[%clk 0:00:14]} 41. Nf6+ {[%clk 0:00:45]}  Kf8 {[%clk 0:00:14]} 42. Nxh7+ {[%clk 0:00:45]}  Kg8 {[%clk 0:00:15]} 43. Nf6+ {[%clk 0:00:45]}  Kf8 {[%clk 0:00:15]} 44. Bg4 {[%clk 0:00:38]}  Ne5 {[%clk 0:00:13]} 45. Kh4 {[%clk 0:00:39]}  Rb4 {[%clk 0:00:11]} 46. Kg5 {[%clk 0:00:38]}  Nf7+ {[%clk 0:00:09]} 47. Kxg6 {[%clk 0:00:38]}  Ne5+ {[%clk 0:00:09]} 48. Kf5 {[%clk 0:00:34]}  Rxa4 {[%clk 0:00:00]} 49. Ke6 {[%clk 0:00:31]} 1-0


[Site "https://www.chess.com"]